bitfinex-derivatives/quotes_BTCF0:USTF0_20250728
["timestamp","ask_amount","ask_price","bid_price","bid_amount"]
[1753669726285,0.4220605,119590.0,119580.0,1.19868507]
[1753669726487,0.4220605,119590.0,119580.0,1.20568507]
[1753669726677,0.4220605,119590.0,119580.0,0.92833176]
[1753669726881,0.4220605,119590.0,119580.0,1.20568507]
[1753669727082,0.4220605,119590.0,119580.0,0.52784507]
[1753669727287,0.4220605,119590.0,119580.0,1.20384507]
[1753669730092,0.43040554,119590.0,119580.0,1.20384507]
[1753669730793,0.43040554,119590.0,119580.0,1.20414433]
[1753669734794,0.43040554,119590.0,119580.0,1.20552433]
[1753669736397,0.43040554,119590.0,119580.0,0.92817102]
[1753669736595,0.43040554,119590.0,119580.0,1.20552433]
[1753669737495,0.43040554,119590.0,119580.0,1.03831983]
[1753669738389,0.43040554,119590.0,119580.0,0.75049652]
[1753669738589,0.70775885,119590.0,119580.0,0.75049652]
[1753669738789,0.43040554,119590.0,119580.0,0.07349652]
[1753669739184,0.70775885,119590.0,119580.0,0.07349652]
[1753669739387,0.70775885,119590.0,119580.0,0.05311652]
[1753669739597,0.70775885,119590.0,119580.0,0.02162652]
[1753669739787,0.70775885,119590.0,119580.0,0.02062652]
[1753669739987,0.70775885,119590.0,119580.0,0.02162652]
[1753669740594,1.38371885,119590.0,119580.0,0.02162652]
[1753669741195,1.10636554,119590.0,119580.0,0.02162652]
[1753669741395,1.38371885,119590.0,119580.0,0.02162652]
[1753669742396,1.38371885,119590.0,119580.0,0.003]
[1753669743193,1.55096685,119590.0,119580.0,0.003]
[1753669743997,0.3747042,119580.0,119570.0,0.01625]
[1753669744204,0.4220682,119570.0,119560.0,0.06171]
[1753669744394,0.4220682,119570.0,119560.0,0.33906331]
[1753669745099,0.4220682,119570.0,119560.0,0.06171]
[1753669745298,0.43910202,119570.0,119560.0,0.06171]
[1753669746001,0.43910202,119570.0,119560.0,0.06471]
[1753669746203,0.43910202,119570.0,119560.0,0.06771]
[1753669747510,0.43910202,119570.0,119560.0,0.34506331]
[1753669749299,0.43910202,119570.0,119560.0,0.06771]
[1753669749504,0.43910202,119570.0,119560.0,0.34506331]
[1753669750002,0.43910202,119570.0,119560.0,0.06771]
[1753669750597,0.43910202,119570.0,119560.0,0.34506331]
[1753669751404,0.43910202,119570.0,119560.0,0.06771]
[1753669751705,0.43910202,119570.0,119560.0,0.34506331]
[1753669756192,0.43910202,119570.0,119560.0,0.06771]
[1753669756399,0.43910202,119570.0,119560.0,0.34506331]
[1753669758010,0.43910202,119570.0,119560.0,0.51229551]
[1753669758702,0.43910202,119570.0,119560.0,0.2349422]
[1753669758904,0.43910202,119570.0,119560.0,0.65068078]
[1753669759605,0.64697131,119570.0,119560.0,0.65068078]
[1753669760906,0.7071227,119570.0,119560.0,0.65068078]
[1753669765212,0.49925341,119570.0,119560.0,0.65068078]
[1753669765412,0.7071227,119570.0,119560.0,0.65068078]
[1753669767510,0.7071227,119570.0,119560.0,0.48344858]
[1753669768212,0.7071227,119570.0,119560.0,0.65068078]
[1753669768512,0.64697131,119570.0,119560.0,0.65068078]
[1753669769111,0.64697131,119570.0,119560.0,0.44281149]
[1753669769808,0.64697131,119570.0,119560.0,0.65068078]
[1753669770016,0.64697131,119570.0,119560.0,0.2349422]
[1753669770213,0.64697131,119570.0,119560.0,0.65068078]
[1753669776416,0.43910202,119570.0,119560.0,0.65068078]
[1753669776618,0.64697131,119570.0,119560.0,0.65068078]
[1753669776916,0.43910202,119570.0,119560.0,0.65068078]
[1753669778517,0.43910202,119570.0,119560.0,0.2349422]
[1753669778715,0.43910202,119570.0,119560.0,0.65068078]
[1753669779816,0.43910202,119570.0,119560.0,0.2349422]
[1753669780017,0.43910202,119570.0,119560.0,0.65068078]
[1753669782413,0.49925341,119570.0,119560.0,0.65068078]
[1753669782814,0.49925341,119570.0,119560.0,0.2462422]
[1753669783015,0.49925341,119570.0,119560.0,0.66198078]
[1753669783413,0.35524341,119570.0,119560.0,0.66198078]
[1753669783621,0.2145682,119570.0,119560.0,0.66198078]
[1753669785414,0.2145682,119570.0,119560.0,0.86985007]
[1753669785615,0.1672182,119570.0,119560.0,0.86985007]
[1753669785921,0.2134582,119570.0,119560.0,0.66198078]
[1753669788722,0.2709882,119570.0,119560.0,0.66198078]
[1753669790722,0.3044782,119570.0,119560.0,0.66198078]
[1753669790928,0.3510282,119570.0,119560.0,0.66198078]
[1753669791230,0.3826882,119570.0,119560.0,0.66198078]
[1753669792330,0.4191082,119570.0,119560.0,0.66198078]
[1753669794931,0.4357046,119570.0,119560.0,0.66198078]
[1753669795231,0.4357046,119570.0,119560.0,0.68048289]
[1753669801238,0.4357046,119570.0,119560.0,0.66918289]
[1753669801733,0.64357389,119570.0,119560.0,0.25344431]
[1753669801940,0.64357389,119570.0,119560.0,1.0720436]
[1753669802237,0.66028682,119570.0,119560.0,1.05354149]
[1753669802937,0.66028682,119570.0,119560.0,0.67844]
[1753669803137,0.66028682,119570.0,119560.0,0.88630929]
[1753669803436,0.66028682,119570.0,119560.0,1.05354089]
[1753669808540,0.72043821,119570.0,119560.0,1.05354089]
[1753669809640,0.51256892,119570.0,119560.0,1.05354089]
[1753669809937,0.72043821,119570.0,119560.0,1.06574089]
[1753669812543,0.72043821,119570.0,119560.0,0.8941516]
[1753669812742,0.66028682,119570.0,119560.0,1.10202089]
[1753669813545,0.66028682,119570.0,119560.0,0.8941516]
[1753669813747,0.66028682,119570.0,119560.0,1.10202089]
[1753669814446,0.72046681,119570.0,119560.0,1.10202089]
[1753669816149,0.51259752,119570.0,119560.0,1.10202089]
[1753669816446,0.72046681,119570.0,119560.0,1.10202089]
[1753669818247,0.51259752,119570.0,119560.0,0.8941516]
[1753669818435,0.72046681,119570.0,119560.0,1.10202089]
[1753669818636,0.66028682,119570.0,119560.0,1.10202089]
[1753669821052,0.66028682,119570.0,119560.0,0.8941516]
[1753669821652,0.66028682,119570.0,119560.0,1.10202089]
[1753669822562,0.66028682,119570.0,119560.0,0.8941516]
[1753669822962,0.66028682,119570.0,119560.0,1.10202089]
[1753669823258,0.72046681,119570.0,119560.0,1.10202089]
[1753669823455,0.72046681,119570.0,119560.0,0.8941516]
[1753669823655,0.72046681,119570.0,119560.0,1.10202089]
[1753669826658,0.51259752,119570.0,119560.0,1.10202089]
[1753669826856,0.72046681,119570.0,119560.0,1.10202089]
[1753669829165,0.72046681,119570.0,119560.0,0.93478929]
[1753669829552,0.72046681,119570.0,119560.0,1.10202129]
[1753669830364,0.72046681,119570.0,119560.0,0.894152]
[1753669830559,0.72046681,119570.0,119560.0,1.10202129]
[1753669830763,0.72046681,119570.0,119560.0,0.894152]
[1753669830966,0.72046681,119570.0,119560.0,1.10202129]
[1753669832668,0.51259752,119570.0,119560.0,1.10202129]
[1753669832961,0.72046681,119570.0,119560.0,1.10202129]
[1753669833852,0.72046681,119570.0,119560.0,1.11078129]
[1753669834259,0.72046681,119570.0,119560.0,1.31865058]
[1753669834463,0.51259752,119570.0,119560.0,1.31865058]
[1753669835464,0.72046681,119570.0,119560.0,1.31865058]
[1753669835765,0.24399459,119570.0,119560.0,1.31865058]
[1753669835960,0.29211459,119570.0,119560.0,1.31865058]
[1753669837066,0.24399459,119570.0,119560.0,1.31865058]
[1753669837459,0.29211459,119570.0,119560.0,1.31865058]
[1753669838267,0.2319346,119570.0,119560.0,1.31865058]
[1753669840774,0.2319346,119570.0,119560.0,0.902912]
[1753669841070,0.2319346,119570.0,119560.0,1.31865058]
[1753669845369,0.2319346,119570.0,119560.0,0.902912]
[1753669845572,0.2319346,119570.0,119560.0,1.31865058]
[1753669852468,0.0647164,119570.0,119560.0,1.31865058]
[1753669853074,0.0165964,119570.0,119560.0,1.52651987]
[1753669853273,0.2153359,119580.0,119560.0,1.52651987]
[1753669853274,0.45505299,119590.0,119580.0,0.167204]
[1753669853481,0.493773,119590.0,119580.0,1.25912258]
[1753669853671,0.493773,119590.0,119580.0,0.843384]
[1753669853874,0.493773,119590.0,119580.0,1.25796258]
[1753669854074,0.4519736,119590.0,119580.0,1.25796258]
[1753669854274,0.24298,119590.0,119580.0,1.25912258]
[1753669854984,0.24298,119590.0,119580.0,1.26012258]
[1753669855482,0.41017,119590.0,119580.0,1.26012258]
[1753669855878,0.24298,119590.0,119580.0,1.26012258]
[1753669856781,0.41017,119590.0,119580.0,0.844384]
[1753669857178,0.41017,119590.0,119580.0,1.26012258]
[1753669858477,0.41017,119590.0,119580.0,1.25896258]
[1753669861983,0.41017,119590.0,119580.0,0.843224]
[1753669862184,0.41017,119590.0,119580.0,1.25896258]
[1753669862786,0.41017,119590.0,119580.0,0.843224]
[1753669863085,0.41017,119590.0,119580.0,1.25918258]
[1753669863285,0.31421,119590.0,119580.0,1.25918258]
[1753669863788,0.27748,119590.0,119580.0,1.25918258]
[1753669863984,0.04812,119590.0,119580.0,1.25918258]
[1753669864190,0.2153096,119590.0,119580.0,1.25918258]
[1753669865391,0.23200866,119590.0,119580.0,1.25918258]
[1753669870193,0.23200866,119590.0,119580.0,0.843444]
[1753669870395,0.23200866,119590.0,119580.0,1.25918258]
[1753669870797,0.42439866,119590.0,119580.0,0.843444]
[1753669870990,0.42439866,119590.0,119580.0,1.25918258]
[1753669871304,0.42439866,119590.0,119580.0,1.26246258]
[1753669876803,0.06481906,119590.0,119580.0,1.47033187]
[1753669877401,0.01669906,119590.0,119580.0,1.47033187]
[1753669877698,0.1671861,119600.0,119590.0,0.1671902]
[1753669877906,0.1671861,119600.0,119590.0,0.58292878]
[1753669878110,0.4431464,119610.0,119600.0,0.1671762]
[1753669878304,0.1671725,119610.0,119600.0,1.49043649]
[1753669878498,0.46151579,119620.0,119610.0,0.1671622]
[1753669878810,0.4457258,119620.0,119610.0,0.44402581]
[1753669879699,0.4039376,119620.0,119610.0,0.44402581]
[1753669880206,0.4049376,119620.0,119610.0,0.1671622]
[1753669880399,0.4049376,119620.0,119610.0,0.44402581]
[1753669881906,0.4059376,119620.0,119610.0,0.44402581]
[1753669882304,0.23878,119620.0,119610.0,0.44402581]
[1753669882500,0.12816,119620.0,119610.0,0.44402581]
[1753669882809,0.04639,119620.0,119610.0,0.44402581]
[1753669885603,0.002,119620.0,119610.0,0.44402581]
[1753669886408,0.04694,119620.0,119610.0,0.44402581]
[1753669887103,0.002,119620.0,119610.0,0.44402581]
[1753669887309,0.04494,119630.0,119620.0,0.1671483]
[1753669887509,0.04494,119630.0,119620.0,0.781722]
[1753669888414,0.04494,119660.0,119620.0,1.55930091]
[1753669888608,0.2120388,119660.0,119650.0,0.38794002]
[1753669888911,0.2120388,119660.0,119650.0,0.40649883]
[1753669888912,0.04494,119660.0,119650.0,0.40649883]
[1753669889209,0.04494,119660.0,119650.0,0.18566521]
[1753669889409,0.4032125,119660.0,119650.0,1.15856882]
[1753669889614,0.41997579,119660.0,119650.0,0.88170521]
[1753669889809,0.42197579,119660.0,119650.0,0.88170521]
[1753669890113,0.42197579,119660.0,119650.0,0.88166521]
[1753669890514,0.42297579,119660.0,119650.0,0.94859341]
[1753669890708,0.42297579,119660.0,119650.0,1.22545702]
[1753669891112,0.42297579,119660.0,119650.0,1.15852882]
[1753669891315,0.42197579,119660.0,119650.0,0.88166521]
[1753669891516,0.42197579,119660.0,119650.0,1.15852882]
[1753669891816,0.42197579,119660.0,119650.0,0.88166521]
[1753669892505,0.42197579,119660.0,119650.0,1.15852882]
[1753669892709,0.42197579,119660.0,119650.0,1.15896882]
[1753669893012,0.25288329,119660.0,119650.0,1.15896882]
[1753669893211,0.25388329,119660.0,119650.0,1.15896882]
[1753669894529,0.06270329,119660.0,119650.0,1.16735483]
[1753669895029,0.06270329,119660.0,119650.0,0.89049122]
[1753669895330,0.06270329,119660.0,119650.0,1.16735483]
[1753669895629,0.06270329,119660.0,119650.0,1.23494489]
[1753669896024,0.22879579,119660.0,119650.0,0.95808128]
[1753669896233,0.41997579,119660.0,119650.0,0.94969527]
[1753669896425,0.41997579,119660.0,119650.0,1.22655888]
[1753669896730,0.41997579,119660.0,119650.0,0.94969527]
[1753669896931,0.41997579,119660.0,119650.0,1.22655888]
[1753669897127,0.41997579,119660.0,119650.0,0.94969527]
[1753669897333,0.25288329,119660.0,119650.0,1.22655888]
[1753669897830,0.06170329,119660.0,119650.0,1.22655888]
[1753669898127,0.06170329,119660.0,119650.0,0.94969527]
[1753669898333,0.06170329,119660.0,119650.0,1.23484139]
[1753669898532,0.04494,119660.0,119650.0,1.23484139]
[1753669899029,0.04494,119670.0,119650.0,0.83264638]
[1753669899233,0.04494,119670.0,119660.0,0.2506358]
[1753669899432,0.04494,119670.0,119660.0,0.56927181]
[1753669900329,0.09707,119670.0,119660.0,0.56927181]
[1753669900532,0.1269,119670.0,119660.0,0.2924082]
[1753669900829,0.19956,119670.0,119660.0,0.56927181]
[1753669901035,0.23612,119670.0,119660.0,0.56927181]
[1753669901537,0.23612,119670.0,119660.0,0.2924082]
[1753669901928,0.23612,119670.0,119660.0,0.56927181]
[1753669902128,0.23612,119670.0,119660.0,0.2924082]
[1753669902329,0.23612,119670.0,119660.0,0.56927181]
[1753669902729,0.23612,119670.0,119660.0,0.2924082]
[1753669903129,0.23612,119670.0,119660.0,0.56927181]
[1753669903529,0.23612,119670.0,119660.0,0.2924082]
[1753669903730,0.23612,119670.0,119660.0,0.56927181]
[1753669903928,0.04494,119670.0,119660.0,0.56927181]
[1753669905939,0.04494,119670.0,119660.0,0.2924082]
[1753669906137,0.04494,119670.0,119660.0,0.56927181]
[1753669907528,0.09707,119670.0,119660.0,0.56927181]
[1753669907932,0.04494,119670.0,119660.0,0.56927181]
[1753669908132,0.04494,119680.0,119660.0,0.31863451]
[1753669908336,0.04494,119680.0,119670.0,1.22711831]
[1753669908534,0.04494,119680.0,119670.0,1.2875864]
[1753669909039,0.04494,119690.0,119670.0,1.0369703]
[1753669909242,0.19956,119690.0,119680.0,0.56922041]
[1753669909536,0.10377,119690.0,119680.0,0.84608622]
[1753669909741,0.07394,119690.0,119680.0,0.84608622]
[1753669909935,0.04494,119690.0,119680.0,0.292359]
[1753669910133,0.04494,119690.0,119680.0,0.56922261]
[1753669910534,0.2708205,119690.0,119680.0,0.56922261]
[1753669910739,0.4031705,119690.0,119680.0,0.292359]
[1753669911135,0.4031705,119690.0,119680.0,0.56922261]
[1753669911332,0.23612,119690.0,119680.0,0.56922261]
[1753669911737,0.04494,119690.0,119680.0,0.84608622]
[1753669911938,0.04494,119690.0,119680.0,0.292359]
[1753669912138,0.04494,119690.0,119680.0,0.56922261]
[1753669912643,0.04494,119690.0,119680.0,0.84608622]
[1753669914244,0.1319,119700.0,119690.0,0.1670505]
[1753669914446,0.24112,119700.0,119690.0,1.14603411]
[1753669915047,0.24112,119700.0,119690.0,1.21232683]
[1753669915342,0.05094,119700.0,119690.0,1.23089583]
[1753669915538,0.12593,119720.0,119690.0,1.01021533]
[1753669915734,0.04765,119710.0,119700.0,0.2923138]
[1753669916135,0.04765,119710.0,119700.0,0.56917741]
[1753669916845,0.04765,119720.0,119710.0,0.63240002]
[1753669917045,0.04765,119720.0,119710.0,1.61086363]
[1753669917246,0.04765,119720.0,119710.0,1.67879521]
[1753669918441,0.04965,119720.0,119710.0,1.67879521]
[1753669919139,0.002,119720.0,119710.0,1.4019316]
[1753669919339,0.006,119720.0,119710.0,1.4019316]
[1753669919541,0.006,119720.0,119710.0,1.67879521]
[1753669920345,0.004,119720.0,119710.0,1.4029316]
[1753669920547,0.004,119720.0,119710.0,1.67979521]
[1753669921643,0.004,119720.0,119710.0,1.4029316]
[1753669921844,0.004,119720.0,119710.0,1.67979521]
[1753669922046,0.04775,119730.0,119710.0,1.235909]
[1753669922346,0.04775,119730.0,119710.0,1.51277261]
[1753669922550,0.32461361,119730.0,119710.0,1.51277261]
[1753669922753,0.39355361,119730.0,119710.0,1.235909]
[1753669923049,1.00861612,119720.0,119710.0,0.6198236]
[1753669923247,0.56474361,119720.0,119710.0,1.3249836]
[1753669923447,0.28788,119720.0,119710.0,1.3229836]
[1753669923754,0.04765,119720.0,119710.0,1.60184721]
[1753669923948,0.04775,119730.0,119710.0,1.47757791]
[1753669924140,0.04775,119730.0,119710.0,1.2424691]
[1753669924345,0.04775,119730.0,119710.0,1.51933271]
[1753669924841,0.04775,119730.0,119720.0,0.09005998]
[1753669925046,0.32461361,119730.0,119720.0,0.09005998]
[1753669925745,0.32461361,119730.0,119720.0,0.79749998]
[1753669925948,0.04775,119730.0,119720.0,0.79749998]
[1753669926347,0.32461361,119730.0,119720.0,0.79749998]
[1753669927350,0.04775,119730.0,119720.0,0.79753998]
[1753669927551,0.32461361,119730.0,119720.0,0.79753998]
[1753669928350,0.04775,119730.0,119720.0,0.79753998]
[1753669928657,0.51709361,119750.0,119740.0,0.2445209]
[1753669928852,0.51709361,119750.0,119740.0,0.97069614]
[1753669929252,0.68406061,119750.0,119740.0,0.26313614]
[1753669929555,0.68406061,119750.0,119740.0,0.97097614]
[1753669930557,0.73171061,119750.0,119740.0,0.97097614]
[1753669930854,0.73271061,119750.0,119740.0,0.26313614]
[1753669931060,0.455847,119750.0,119740.0,0.97189614]
[1753669931259,0.73271061,119750.0,119740.0,0.97189614]
[1753669931461,0.73271061,119750.0,119740.0,0.98018028]
[1753669931656,0.73171061,119750.0,119740.0,0.98018028]
[1753669931852,0.56474361,119750.0,119740.0,0.98118028]
[1753669932358,0.04765,119750.0,119740.0,0.98118028]
[1753669932656,0.04765,119760.0,119740.0,1.21294709]
[1753669932857,0.32451361,119760.0,119740.0,2.09128348]
[1753669933052,0.32451361,119760.0,119740.0,2.36814709]
[1753669933351,0.39345361,119770.0,119740.0,2.32642608]
[1753669933552,0.39345361,119770.0,119740.0,2.28468378]
[1753669933748,0.04765,119760.0,119740.0,2.28368378]
[1753669933955,0.04765,119760.0,119740.0,2.28468378]
[1753669934155,0.04765,119760.0,119740.0,2.28368378]
[1753669934356,0.04765,119760.0,119740.0,2.28468378]
[1753669934551,0.27686361,119750.0,119740.0,1.29906017]
[1753669934758,0.73171061,119750.0,119740.0,1.92354938]
[1753669934960,0.73171061,119750.0,119740.0,1.21654938]
[1753669935153,0.73171061,119750.0,119740.0,1.92338938]
[1753669935552,0.73171061,119750.0,119740.0,1.21654938]
[1753669935753,0.73171061,119750.0,119740.0,1.92366938]
[1753669935948,0.73171061,119750.0,119740.0,1.20826524]
[1753669936158,0.73171061,119750.0,119740.0,0.72837524]
[1753669936552,0.73171061,119750.0,119740.0,0.72637524]
[1753669936754,0.454847,119750.0,119740.0,0.72837524]
[1753669936963,0.73171061,119750.0,119740.0,0.02061524]
[1753669937262,0.73171061,119750.0,119740.0,0.72837524]
[1753669937456,0.73171061,119750.0,119740.0,0.72737524]
[1753669937659,0.73171061,119750.0,119740.0,0.72837524]
[1753669938054,0.73171061,119750.0,119740.0,0.72817524]
[1753669938255,0.73171061,119750.0,119740.0,0.90335773]
[1753669939865,0.73171061,119750.0,119740.0,0.89515634]
[1753669940158,0.454847,119750.0,119740.0,0.89515634]
[1753669940363,0.73171061,119750.0,119740.0,0.89515634]
[1753669940757,0.73171061,119750.0,119740.0,0.72713524]
[1753669941460,0.73171061,119750.0,119740.0,0.02061524]
[1753669941765,0.73171061,119750.0,119740.0,0.72725524]
[1753669942262,0.73171061,119750.0,119740.0,0.89423634]
[1753669942461,0.454847,119750.0,119740.0,0.89423634]
[1753669942664,0.73171061,119750.0,119740.0,0.89451634]
[1753669943763,0.28788,119750.0,119740.0,1.04156634]
[1753669943961,0.4548471,119750.0,119740.0,1.04156634]
[1753669944157,0.56474361,119750.0,119740.0,1.04156634]
[1753669944465,0.73171071,119750.0,119740.0,1.04156634]
[1753669944659,0.4548471,119750.0,119740.0,1.04156634]
[1753669945059,0.4548471,119750.0,119740.0,0.87458524]
[1753669945265,0.73171071,119750.0,119740.0,1.04156634]
[1753669945567,0.73171071,119750.0,119740.0,0.87458524]
[1753669945763,0.73171071,119750.0,119740.0,1.04156634]
[1753669946159,0.4548471,119750.0,119740.0,0.87458524]
[1753669946359,0.73171071,119750.0,119740.0,1.04156634]
[1753669946556,0.3289171,119750.0,119740.0,1.04156634]
[1753669946757,0.60578071,119750.0,119740.0,1.04156634]
[1753669947468,0.3289171,119750.0,119740.0,1.04156634]
[1753669947761,0.2154944,119760.0,119740.0,0.79368524]
[1753669947964,0.04854,119760.0,119740.0,1.00439885]
[1753669948266,0.04854,119760.0,119750.0,0.292175]
[1753669949564,0.5682471,119750.0,119740.0,0.02061524]
[1753669949763,0.84511071,119750.0,119740.0,0.72569524]
[1753669950568,0.84511071,119750.0,119740.0,0.72469524]
[1753669950768,0.89211409,119750.0,119740.0,0.72569524]
[1753669951164,0.89211409,119750.0,119740.0,0.72561524]
[1753669951467,0.89211409,119750.0,119740.0,0.89159624]
[1753669951667,0.89211409,119750.0,119740.0,0.89259624]
[1753669952171,0.5682471,119750.0,119740.0,0.89259624]
[1753669952364,0.89211409,119750.0,119740.0,0.89259624]
[1753669954178,0.89211409,119750.0,119740.0,0.72561524]
[1753669954468,0.89211409,119750.0,119740.0,0.89259634]
[1753669954669,0.5682471,119750.0,119740.0,0.89259634]
[1753669954868,0.89211409,119750.0,119740.0,0.89259634]
[1753669956378,0.89211409,119750.0,119740.0,0.72561524]
[1753669958573,0.5682471,119750.0,119740.0,0.72561524]
[1753669959074,0.89211409,119750.0,119740.0,0.72561524]
[1753669959969,1.21598108,119750.0,119740.0,0.72665524]
[1753669960467,0.89211409,119750.0,119740.0,0.72665524]
[1753669961174,0.89211409,119750.0,119740.0,0.02061524]
[1753669961476,0.89211409,119750.0,119740.0,0.72669524]
[1753669962670,0.5682471,119750.0,119740.0,0.72569524]
[1753669962866,0.89211409,119750.0,119740.0,0.72569524]
[1753669963467,0.5682471,119750.0,119740.0,0.72569524]
[1753669963669,0.89211409,119750.0,119740.0,0.72569524]
[1753669964066,0.89211409,119750.0,119740.0,0.72469524]
[1753669964477,0.89211409,119750.0,119740.0,0.89167634]
[1753669964676,0.89211409,119750.0,119740.0,0.72469524]
[1753669965569,0.89211409,119750.0,119740.0,0.89167634]
[1753669968774,0.89211409,119750.0,119740.0,0.72469524]
[1753669969868,0.89211409,119750.0,119740.0,0.89167614]
[1753669970074,0.89211409,119750.0,119740.0,0.72469524]
[1753669970474,0.89211409,119750.0,119740.0,0.89167614]
[1753669970878,0.5682471,119750.0,119740.0,0.89167614]
[1753669971177,0.89211409,119750.0,119740.0,0.89167614]
[1753669972378,0.5682471,119750.0,119740.0,0.89167614]
[1753669972580,0.53937409,119750.0,119740.0,0.89167614]
[1753669972772,0.32485214,119750.0,119740.0,0.89167614]
[1753669973368,0.04854,119750.0,119740.0,0.89167614]
[1753669973982,0.04854,119760.0,119750.0,0.166967]
[1753669974871,0.04854,119760.0,119750.0,0.179267]
[1753669975274,0.04954,119760.0,119750.0,0.179267]
[1753669975474,0.05154,119760.0,119750.0,0.179267]
[1753669975675,0.003,119760.0,119750.0,0.45557914]
[1753669976076,0.002,119760.0,119750.0,0.45557914]
[1753669976278,0.002,119760.0,119750.0,0.179267]
[1753669976475,0.001,119760.0,119750.0,0.179267]
[1753669977777,0.001,119760.0,119750.0,0.20889998]
[1753669978274,0.04635,119760.0,119750.0,0.20889998]
[1753669978680,0.001,119760.0,119750.0,0.20889998]
[1753669980381,0.04635,119760.0,119750.0,0.20889998]
[1753669980785,0.001,119760.0,119750.0,0.48521212]
[1753669981280,0.001,119760.0,119750.0,0.20889998]
[1753669981481,0.25043104,119790.0,119760.0,0.28388214]
[1753669981684,0.04535,119780.0,119770.0,0.78438824]
[1753669981882,0.27636248,119790.0,119770.0,0.67783259]
[1753669982082,0.04540034,119790.0,119770.0,0.67310259]
[1753669982284,0.04540034,119790.0,119770.0,0.39679045]
[1753669982479,0.32171248,119790.0,119770.0,0.39679045]
[1753669982878,0.32171248,119790.0,119770.0,0.46516166]
[1753669983276,0.21231174,119790.0,119770.0,0.46516166]
[1753669983480,0.48862438,119790.0,119770.0,0.46516166]
[1753669983678,0.53035228,119790.0,119770.0,0.49479464]
[1753669983877,0.53035218,119790.0,119770.0,0.49479464]
[1753669984078,0.57208048,119790.0,119770.0,0.45306194]
[1753669984381,0.21232074,119790.0,119780.0,0.2257592]
[1753669984582,0.48863288,119790.0,119780.0,0.3926844]
[1753669985380,0.61156288,119790.0,119780.0,0.3926844]
[1753669985778,0.04540034,119790.0,119780.0,0.5596524]
[1753669985977,0.32171248,119790.0,119780.0,0.5596524]
[1753669986182,0.27636248,119790.0,119780.0,0.5596524]
[1753669986382,0.44327368,119790.0,119780.0,0.5596524]
[1753669986584,0.04540034,119790.0,119780.0,0.5596524]
[1753669986785,0.48862368,119790.0,119780.0,0.5596524]
[1753669987085,0.21231154,119790.0,119780.0,0.5596524]
[1753669987389,0.48862368,119790.0,119780.0,0.5596524]
[1753669988092,0.57202154,119790.0,119780.0,0.3338932]
[1753669988292,0.5719853,119780.0,119770.0,0.25396116]
[1753669988591,0.84829744,119780.0,119770.0,0.95540116]
[1753669988989,0.04540034,119790.0,119780.0,0.1669252]
[1753669989189,0.21231164,119790.0,119780.0,0.1669252]
[1753669989390,0.04540034,119790.0,119780.0,0.1669252]
[1753669990493,0.04540034,119790.0,119780.0,0.69368824]
[1753669990690,0.04540034,119790.0,119780.0,0.4173761]
[1753669991195,0.16833034,119790.0,119780.0,0.4173761]
[1753669991697,0.31640034,119790.0,119780.0,0.4173761]
[1753669991897,0.04540034,119790.0,119780.0,0.69368824]
[1753669992497,0.04540034,119790.0,119780.0,0.4193761]
[1753669994495,0.04540034,119790.0,119780.0,0.74488714]
[1753669994691,0.04540034,119790.0,119780.0,0.2544081]
[1753669995804,0.04540034,119790.0,119780.0,0.57791914]
[1753669996001,0.04540034,119790.0,119780.0,0.74488714]
[1753669996305,0.29938,119800.0,119780.0,0.74488044]
[1753669996306,0.15035,119800.0,119780.0,0.74488044]
[1753669996604,0.15035,119800.0,119780.0,1.27755244]
[1753669996991,0.04535,119790.0,119780.0,1.44447804]
[1753669997395,0.04535,119790.0,119780.0,1.61144604]
[1753669998603,0.04535,119790.0,119780.0,1.287935]
[1753669999401,0.40506,119790.0,119780.0,1.120967]
[1753670000795,0.21068,119790.0,119780.0,1.120967]
[1753670001098,0.27328,119800.0,119780.0,1.44452044]
[1753670001299,0.27328,119800.0,119780.0,0.9540414]
[1753670001505,0.04535,119790.0,119780.0,1.1209669]
[1753670001904,0.04535,119790.0,119780.0,1.61144594]
[1753670002204,0.1682974,119830.0,119790.0,0.36523784]
[1753670002205,0.423861,119820.0,119790.0,0.36523784]
[1753670002405,0.36666314,119830.0,119790.0,0.31041883]
[1753670002406,0.40506,119800.0,119790.0,0.31041883]
[1753670002699,0.40506,119800.0,119790.0,1.01761883]
[1753670003000,0.40506,119800.0,119790.0,1.10109476]
[1753670003599,0.40506,119800.0,119790.0,1.4246058]
[1753670003799,0.12197,119800.0,119790.0,1.10109476]
[1753670004096,0.04535,119800.0,119790.0,1.10109476]
[1753670004498,0.04535,119800.0,119790.0,1.26804676]
[1753670004698,0.04535,119810.0,119790.0,1.14286246]
[1753670005004,0.16392,119810.0,119790.0,0.97591046]
[1753670005304,0.04582,119800.0,119790.0,1.17236046]
[1753670005800,0.04582,119800.0,119790.0,1.33931246]
[1753670006204,0.20974,119810.0,119790.0,1.17240116]
[1753670006500,0.04582,119810.0,119790.0,1.00544916]
[1753670006695,0.04582,119820.0,119790.0,1.3707228]
[1753670006895,0.04582,119820.0,119790.0,0.92555041]
[1753670007195,0.16392,119820.0,119790.0,0.92557724]
[1753670007401,0.04582,119820.0,119790.0,0.92557724]
[1753670007597,0.2816693,119830.0,119790.0,2.52814337]
[1753670007598,0.0014375,119830.0,119790.0,2.52814337]
[1753670007796,0.0014375,119830.0,119800.0,0.04528265]
[1753670007997,0.0014375,119830.0,119800.0,0.37329369]
[1753670008197,0.0014375,119830.0,119800.0,0.34944216]
[1753670008400,0.0014375,119830.0,119800.0,0.43291113]
[1753670008796,0.32494854,119830.0,119800.0,0.43291113]
[1753670008997,0.0014375,119830.0,119800.0,0.81241973]
[1753670009197,0.0014375,119830.0,119800.0,0.43241113]
[1753670009498,0.32494854,119830.0,119810.0,0.0417192]
[1753670009697,0.04582,119820.0,119810.0,0.73672]
[1753670009901,0.32351104,119820.0,119810.0,1.0701589]
[1753670010200,0.0472575,119830.0,119810.0,1.3622123]
[1753670010402,0.36933104,119820.0,119810.0,0.820182]
[1753670010597,0.04582,119820.0,119810.0,1.0287694]
[1753670010805,0.36933104,119820.0,119810.0,1.0287694]
[1753670011004,0.04582,119820.0,119810.0,1.0317694]
[1753670011204,0.36933104,119820.0,119810.0,1.0317694]
[1753670011405,0.2111775,119830.0,119810.0,0.9483386]
[1753670011600,0.32351104,119820.0,119810.0,1.1122208]
[1753670011908,0.0472575,119830.0,119810.0,0.9483386]
[1753670012305,0.32351104,119820.0,119810.0,1.1152213]
[1753670012808,0.32351104,119820.0,119810.0,1.3692213]
[1753670013211,0.32351104,119820.0,119810.0,0.090462]
[1753670013502,0.32351104,119820.0,119790.0,0.909428]
[1753670013503,0.5671866,119800.0,119790.0,0.909428]
[1753670013697,0.2127317,119790.0,119770.0,0.17067248]
[1753670013902,0.36933104,119780.0,119770.0,1.02270452]
[1753670014106,0.36933104,119780.0,119770.0,1.10616652]
[1753670014303,0.36933104,119780.0,119770.0,0.36056652]